Workbook

Sheet Intro
A1: Multi, intro hold
E3: 1 | F3: 2 | G3: 3 | H3: 4 | I3: 5 | J3: 6 | K3: 7 | L3: 8 | M3: 9 | N3: 10 | O3: 11 | P3: 12 | Q3: 13 | R3: 14 | S3: 15 | T3: 16 | V3: Total | X3: Placering
A5: Lars Peter Damgaard - Jan Pedersen - Jørgen Pabst | E5: 11.66 | F5: 9.7 | G5: 9.8 | H5: 8.77 | I5: 11.53 | J5: 12.14 | K5: 4.79 | L5: 6.18 | M5: 13.97 | N5: 17.33 | O5: 4.61 | P5: 11.64 | Q5: 15.01 | R5: 13.05 | S5: 6.68 | T5: 12.69 | V5: =AVERAGE(E5:T5) -> 10.596875 | X5: 5
A6: Benny Marquart - Keld Grann | E6: 8.44 | F6: 10.95 | G6: 10.96 | H6: 6.84 | I6: 14.52 | J6: 9.07 | K6: 9.55 | L6: 8.06 | M6: 8.98 | N6: 9.41 | O6: 10.85 | P6: 10.23 | Q6: 8.95 | R6: 9.44 | S6: 3.65 | T6: 9.55 | V6: =AVERAGE(E6:T6) -> 9.340625 | X6: 11
A8: Marlene Henneberg - J.O Henneberg | E8: 6.98 | F8: 13.54 | G8: 9.04 | H8: 11.23 | I8: 12.36 | J8: 9.76 | K8: 8.92 | L8: 15.22 | M8: 6.55 | N8: 13.15 | O8: 7.27 | P8: 11.86 | Q8: 5.82 | R8: 13.62 | S8: 16.35 | T8: 7.31 | V8: =AVERAGE(E8:T8) -> 10.56125 | X8: 6
A9: H K Sørensen - Niels Henriksen | E9: 6.56 | F9: 13.1 | G9: 10.2 | H9: 13.16 | I9: 17.44 | J9: 4.87 | K9: 10.85 | L9: 17.36 | M9: 3.82 | N9: 9.32 | O9: 8.49 | P9: 8.22 | Q9: 11.33 | R9: 6.3 | S9: 13.32 | T9: 10.45 | V9: =AVERAGE(E9:T9) -> 10.299375 | X9: 8
A11: Jørgen Cilleborg Hansen - Steen Schou | E11: 4.41 | F11: 14.66 | G11: 16.28 | H11: 5.3 | I11: 8.47 | J11: 10.93 | K11: 11.08 | L11: 2.64 | M11: 11.81 | N11: 15.31 | O11: 12.25 | P11: 7.16 | Q11: 3.93 | R11: 7.47 | S11: 1.7 | T11: 12.94 | V11: =AVERAGE(E11:T11) -> 9.14625 | X11: 12
A12: Peter Jepsen - Søren Cilleborg Bilde | E12: 0.35 | F12: 14.77 | G12: 11.12 | H12: 1.61 | I12: 5.48 | J12: 7.86 | K12: 9.15 | L12: 4.78 | M12: 16.65 | N12: 7.69 | O12: 13.27 | P12: 5.59 | Q12: 9.54 | R12: 10.2 | S12: 13.91 | T12: 10.17 | V12: =AVERAGE(E12:T12) -> 8.88375 | X12: 13
A14: Emil Jepsen - Morten Bilde | E14: 7.97 | F14: 9.61 | G14: 9.24 | H14: 14.54 | I14: 16.88 | J14: 6.91 | K14: 10.45 | L14: 13.82 | M14: 13.45 | N14: 10.68 | O14: 6.73 | P14: 12.84 | Q14: 12.77 | R14: 8.88 | S14: 11.97 | T14: 5.28 | V14: =AVERAGE(E14:T14) -> 10.75125 | X14: 3
A15: Morten Stege - Nils Mønsted | E15: 15.68 | F15: 8.68 | G15: 3.03 | H15: 9.67 | I15: 14.52 | J15: 3.41 | K15: 15.21 | L15: 11.94 | M15: 16.18 | N15: 6.85 | O15: 7.75 | P15: 14.41 | Q15: 18.73 | R15: 15.31 | S15: 9.95 | T15: 10.9 | V15: =AVERAGE(E15:T15) -> 11.38875 | X15: 2
A17: Tom Nørgaard - Trine Bilde - Peter Barsøe | E17: 12.03 | F17: 11.32 | G17: 8.2 | H17: 6.07 | I17: 10.13 | J17: 7.33 | K17: 4.97 | L17: 3.87 | M17: 11.02 | N17: 2.67 | O17: 12.73 | P17: 11.78 | Q17: 16.07 | R17: 9.8 | S17: 18.3 | T17: 9.83 | V17: =AVERAGE(E17:T17) -> 9.7575 | X17: 10
A18: Danny Hansen - Thomas Hahn | E18: 4.32 | F18: 10.39 | G18: 8.33 | H18: 6.82 | I18: 5.68 | J18: 11.81 | K18: 14.95 | L18: 5.18 | M18: 6.03 | N18: 10.59 | O18: 11.51 | P18: 8.14 | Q18: 10.46 | R18: 12.53 | S18: 6.09 | T18: 7.06 | V18: =AVERAGE(E18:T18) -> 8.743125 | X18: 15
A20: Øjvind Hulgaard - Jesper Gad | E20: 15.59 | F20: 5.23 | G20: 16.97 | H20: 5.46 | I20: 9.87 | J20: 8.19 | K20: 8.85 | L20: 16.16 | M20: 16.22 | N20: 11.26 | O20: 9.15 | P20: 8.36 | Q20: 8.67 | R20: 6.38 | S20: 10.05 | T20: 14.72 | V20: =AVERAGE(E20:T20) -> 10.695625 | X20: 4
A21: Niels Krøjgaard - Mads Krøjgaard | E21: 19.65 | F21: 5.34 | G21: 10.76 | H21: 10.33 | I21: 14.32 | J21: 12.67 | K21: 5.57 | L21: 10.84 | M21: 13.35 | N21: 15.4 | O21: 15.39 | P21: 9.77 | Q21: 14.18 | R21: 13.7 | S21: 8.03 | T21: 9.1 | V21: =AVERAGE(E21:T21) -> 11.775 | X21: 1
A23: Johanne Bilde Kofoed - Jens Kofoed | E23: 13.02 | F23: 6.9 | G23: 3.72 | H23: 18.39 | I23: 5.48 | J23: 13.09 | K23: 5.05 | L23: 16.13 | M23: 3.78 | N23: 4.6 | O23: 5.29 | P23: 4.54 | Q23: 11.05 | R23: 6.95 | S23: 9.42 | T23: 13.24 | V23: =AVERAGE(E23:T23) -> 8.790625 | X23: 14
A24: Henrik Caspersen - Søren Caspersen | E24: 13.44 | F24: 6.46 | G24: 8.88 | H24: 14.7 | I24: 3.12 | J24: 16.59 | K24: 15.03 | L24: 14.82 | M24: 6.65 | N24: 8.74 | O24: 13.77 | P24: 11.16 | Q24: 4.99 | R24: 10.56 | S24: 2.26 | T24: 12.97 | V24: =AVERAGE(E24:T24) -> 10.25875 | X24: 9
A26: Camilla Bo Krefeld - Johan Hammelev | E26: 8.34 | F26: 9.05 | G26: 11.67 | H26: 13.93 | I26: 7.64 | J26: 15.13 | K26: 14.43 | L26: 3.84 | M26: 8.19 | N26: 12.31 | O26: 14.71 | P26: 8.84 | Q26: 1.27 | R26: 11.12 | S26: 17.74 | T26: 6.76 | V26: =AVERAGE(E26:T26) -> 10.310625 | X26: 7
A27: Jesper Bechsgaard - Lars Ugilt | E27: 11.56 | F27: 10.3 | G27: 11.8 | H27: 13.18 | I27: 2.56 | J27: 10.24 | K27: 11.15 | L27: 9.16 | M27: 3.35 | N27: 4.69 | O27: 6.23 | P27: 15.46 | Q27: 7.23 | R27: 4.69 | S27: 10.58 | T27: 7.03 | V27: =AVERAGE(E27:T27) -> 8.700625 | X27: 16

Sheet RR1
A1: Multi, RR1
E3: 1 | F3: 2 | G3: 3 | H3: 4 | I3: 5 | J3: 6 | K3: 7 | L3: 8 | M3: 9 | N3: 10 | O3: 11 | P3: 12 | Q3: 13 | R3: 14 | T3: Total | U3: Placering
A5: Jesper Bechsgaard - Lars Ugilt | E5: 12.73 | F5: 14.82 | G5: 8.07 | H5: 5.37 | I5: 5.14 | J5: 7.14 | K5: 4.92 | L5: 14.88 | M5: 10.34 | N5: 11.01 | O5: 4.82 | P5: 7 | Q5: 6.31 | R5: 17.01 | T5: =AVERAGE(E5:R5) -> 9.254285714 | U5: 12
A6: Danny Hansen - Thomas Hahn | E6: 2.36 | F6: 6.39 | G6: 2.88 | H6: 3.91 | I6: 10.26 | J6: 5.74 | K6: 10.81 | L6: 5.63 | M6: 11.47 | N6: 9.41 | O6: 5.05 | P6: 4.48 | Q6: 7.11 | R6: 6.35 | T6: =AVERAGE(E6:R6) -> 6.560714286 | U6: 16
A8: Emil Jepsen - Morten Bilde | E8: 11.6 | F8: 8.52 | G8: 11.93 | H8: 16.09 | I8: 11.53 | J8: 8.02 | K8: 15.92 | L8: 10.17 | M8: 14.76 | N8: 10.36 | O8: 6.87 | P8: 9.36 | Q8: 19.42 | R8: 7.56 | T8: =AVERAGE(E8:R8) -> 11.57928571 | U8: 3
A9: Marlene Henneberg - J.O Henneberg | E9: 11.9 | F9: 7.3 | G9: 17.12 | H9: 14.63 | I9: 15.13 | J9: 12.77 | K9: 12.23 | L9: 6.83 | M9: 15.16 | N9: 16.03 | O9: 13.04 | P9: 10.8 | Q9: 10.94 | R9: 6.24 | T9: =AVERAGE(E9:R9) -> 12.15142857 | U9: 2
A11: Lars Peter Damgaard - Jan Pedersen - Jørgen Pabst | E11: 4.84 | F11: 11.08 | G11: 11.64 | H11: 17.76 | I11: 14.86 | J11: 14.26 | K11: 7.77 | L11: 9.83 | M11: 2.48 | N11: 5.64 | O11: 6.08 | P11: 12.47 | Q11: 8.21 | R11: 3.83 | T11: =AVERAGE(E11:R11) -> 9.339285714 | U11: 11
A12: Niels Krøjgaard - Mads Krøjgaard | E12: 15.69 | F12: 15.87 | G12: 14.74 | H12: 13.06 | I12: 9.72 | J12: 12.86 | K12: 4.08 | L12: 13.17 | M12: 7.97 | N12: 6.37 | O12: 9.23 | P12: 15.33 | Q12: 13.29 | R12: 8.5 | T12: =AVERAGE(E12:R12) -> 11.42 | U12: 4
A14: Jørgen Cilleborg Hansen - Steen Schou | E14: 8.29 | F14: 10.47 | G14: 15.25 | H14: 5.53 | I14: 10.69 | J14: 14.41 | K14: 15.08 | L14: 14.37 | M14: 4.84 | N14: 9.64 | O14: 13.92 | P14: 4.67 | Q14: 12.66 | R14: 9.62 | T14: =AVERAGE(E14:R14) -> 10.67428571 | U14: 7
A15: Peter Jepsen - Søren Cilleborg Bilde | E15: 7.51 | F15: 15.33 | G15: 10.95 | H15: 6.72 | I15: 8.36 | J15: 8.97 | K15: 9.19 | L15: 5.12 | M15: 5.24 | N15: 3.97 | O15: 10.77 | P15: 7.53 | Q15: 10.06 | R15: 16.92 | T15: =AVERAGE(E15:R15) -> 9.045714286 | U15: 13
A17: Camilla Bo Krefeld - Johan Hammelev | E17: 11.71 | F17: 4.67 | G17: 16.34 | H17: 7.81 | I17: 13.23 | J17: 4.14 | K17: 14.9 | L17: 11.68 | M17: 9.66 | N17: 10.59 | O17: 13.13 | P17: 9.2 | Q17: 6.71 | R17: 16.17 | T17: =AVERAGE(E17:R17) -> 10.71 | U17: 6
A18: Morten Stege - Nils Mønsted | E18: 12.49 | F18: 9.53 | G18: 12.36 | H18: 12.77 | I18: 14.02 | J18: 12.92 | K18: 13.31 | L18: 11.43 | M18: 8.53 | N18: 8.99 | O18: 6.96 | P18: 10.64 | Q18: 11.79 | R18: 11.5 | T18: =AVERAGE(E18:R18) -> 11.23142857 | U18: 5
A20: Henrik Caspersen - Søren Caspersen | E20: 15.16 | F20: 4.13 | G20: 4.75 | H20: 13.28 | I20: 5.98 | J20: 15.86 | K20: 14.38 | L20: 15.88 | M20: 14.01 | N20: 17.77 | O20: 15.18 | P20: 15.52 | Q20: 9.06 | R20: 12.44 | T20: =AVERAGE(E20:R20) -> 12.38571429 | U20: 1
A21: Johanne Bilde Kofoed - Jens Kofoed | E21: 4.31 | F21: 8.92 | G21: 9.05 | H21: 14.47 | I21: 6.77 | J21: 7.08 | K21: 3.21 | L21: 9.72 | M21: 7.79 | N21: 9.78 | O21: 14.95 | P21: 13 | Q21: 0.58 | R21: 13.76 | T21: =AVERAGE(E21:R21) -> 8.813571429 | U21: 14
A23: Øjvind Hulgaard - Jesper Gad | E23: 8.4 | F23: 12.7 | G23: 5.26 | H23: 2.24 | I23: 9.31 | J23: 11.03 | K23: 5.1 | L23: 8.57 | M23: 5.99 | N23: 10.22 | O23: 7.92 | P23: 6.37 | Q23: 12.89 | R23: 2.99 | T23: =AVERAGE(E23:R23) -> 7.785 | U23: 15
A24: Benny Marquart - Keld Grann | E24: 8.1 | F24: 11.48 | G24: 8.36 | H24: 6.94 | I24: 11.64 | J24: 5.59 | K24: 6.69 | L24: 9.32 | M24: 12.21 | N24: 2.23 | O24: 17.48 | P24: 4.6 | Q24: 13.69 | R24: 13.65 | T24: =AVERAGE(E24:R24) -> 9.427142857 | U24: 10
A26: Tom Nørgaard - Trine Bilde - Peter Barsøe | E26: 7.27 | F26: 13.61 | G26: 3.66 | H26: 7.23 | I26: 8.47 | J26: 7.23 | K26: 16.79 | L26: 4.12 | M26: 17.52 | N26: 13.63 | O26: 12.08 | P26: 15.4 | Q26: 7.34 | R26: 3.08 | T26: =AVERAGE(E26:R26) -> 9.816428571 | U26: 9
A27: H K Sørensen - Niels Henriksen | E27: 17.64 | F27: 5.18 | G27: 7.64 | H27: 12.19 | I27: 4.87 | J27: 11.98 | K27: 5.62 | L27: 10.28 | M27: 12.03 | N27: 14.36 | O27: 2.52 | P27: 13.63 | Q27: 9.94 | R27: 10.38 | T27: =AVERAGE(E27:R27) -> 9.875714286 | U27: 8

Sheet Imp Par
A1: IMP Par
B4: 1.aften | C4: 2.aften | D4: 3.aften | E4: 4.aften | F4: 5.aften | H4: Sum | I4: Placering
A6: Henrik Caspersen - Søren Caspersen | B6: 138.9 | C6: 139 | D6: 177 | E6: 511 | F6: 15 | H6: =SUM(B6:F6) -> 980.9 | I6: 1
A7: Marlene Henneberg - J.O Henneberg | B7: 207.2 | C7: 102 | D7: -222 | E7: 153 | F7: 393 | H7: 633.2 | I7: 2
A8: Emil Jepsen - Morten Bilde | B8: -159.3 | C8: 2 | D8: 353 | E8: 118 | F8: 163 | H8: 476.7 | I8: 3
A9: Niels Krøjgaard - Mads Krøjgaard | B9: -133 | C9: 23 | D9: 101 | E9: 56 | F9: 314 | H9: 361 | I9: 4
A10: Morten Stege - Nils Mønsted | B10: -108.4 | C10: 78 | D10: 150 | E10: 71 | F10: 126 | H10: 316.6 | I10: 5
A11: Jørgen Cilleborg Hansen - Steen Schou | B11: 155.7 | C11: 34 | D11: 106 | E11: -185 | F11: 129 | H11: 239.7 | I11: 6
A12: Camilla Bo Krefeld - Johan Hammelev | B12: 174 | C12: 371 | D12: -212 | E12: 78 | F12: -232 | H12: 179 | I12: 7
A13: Tom Nørgaard - Trine Bilde - Peter Barsøe | B13: -20.7 | C13: -114 | D13: -56 | E13: 164 | F13: 140 | H13: 113.3 | I13: 8
A14: Lars Peter Damgaard - Jan Pedersen - Jørgen Pabst | B14: -94.6 | C14: -231 | D14: 232 | E14: 69 | F14: 21 | H14: -3.6 | I14: 9
A15: Øjvind Hulgaard - Jesper Gad | B15: -147.7 | C15: -55 | D15: -20 | E15: 67 | F15: 96 | H15: -59.7 | I15: 10
A16: Peter Jepsen - Søren Cilleborg Bilde | B16: 105.6 | C16: -279 | D16: -266 | E16: 170 | F16: 202 | H16: -67.4 | I16: 11
A17: Benny Marquart - Keld Grann | B17: -26 | C17: 195 | D17: 82 | E17: -293 | F17: -40 | H17: -82 | I17: 12
A18: H K Sørensen - Niels Henriksen | B18: 70.3 | C18: 242 | D18: -318 | E18: -267 | F18: -302 | H18: -574.7 | I18: 13
A19: Johanne Bilde Kofoed - Jens Kofoed | B19: -262.9 | C19: -52 | D19: 378 | E19: -309 | F19: -498 | H19: -743.9 | I19: 14
A20: Danny Hansen - Thomas Hahn | B20: 287.4 | C20: -163 | D20: -262 | E20: -362 | F20: -290 | H20: -789.6 | I20: 15
A21: Jesper Bechsgaard - Lars Ugilt | B21: -166.4 | C21: -292 | D21: -223 | E21: -41 | F21: -237 | H21: -959.4 | I21: 16
B22: =SUM(B6:B21) -> 20.1 | C22: =SUM(C6:C21) -> 0 | D22: =SUM(D6:D21) -> 0 | E22: =SUM(E6:E21) -> 0 | F22: =SUM(F6:F21) -> 0 | H22: =SUM(H6:H21) -> 20.1
A28: 1.aften stemmer af en eller anden grund ikke ?

Sheet RR2
A1: Multi, RR2
E3: 1 | F3: 2 | G3: 3 | H3: 4 | I3: 5 | J3: 6 | K3: 7 | L3: 8 | M3: 9 | N3: 10 | O3: 11 | P3: 12 | Q3: 13 | R3: 14 | T3: Total | U3: Placering
A5: Jesper Bechsgaard - Lars Ugilt | E5: 7.12 | F5: 10.98 | G5: 3.83 | H5: 8.13 | I5: 12.91 | J5: 9.32 | K5: 4.34 | L5: 9.42 | M5: 9.02 | N5: 6.32 | O5: 9.24 | P5: 7.85 | Q5: 13.79 | R5: 11.68 | T5: =AVERAGE(E5:R5) -> 8.853571429 | U5: 13
A6: Danny Hansen - Thomas Hahn | E6: 8.86 | F6: 6.34 | G6: 10.02 | H6: 3.31 | I6: 3.8 | J6: 7.03 | K6: 5.75 | L6: 13.52 | M6: 6.52 | N6: 9.66 | O6: 3.07 | P6: 3.71 | Q6: 4.44 | R6: 9.16 | T6: =AVERAGE(E6:R6) -> 6.799285714 | U6: 16
A8: Emil Jepsen - Morten Bilde | E8: 15.26 | F8: 14.53 | G8: 16.17 | H8: 16.69 | I8: 7.24 | J8: 6.73 | K8: 10.78 | L8: 3.84 | M8: 9.9 | N8: 5.66 | O8: 9.31 | P8: 11.81 | Q8: 6.4 | R8: 4.69 | T8: =AVERAGE(E8:R8) -> 9.929285714 | U8: 9
A9: Marlene Henneberg - J.O Henneberg | E9: 15.81 | F9: 9.62 | G9: 9.98 | H9: 11.87 | I9: 15.61 | J9: 10.55 | K9: 10.15 | L9: 9.59 | M9: 10.54 | N9: 15.76 | O9: 9.27 | P9: 7.25 | Q9: 7.99 | R9: 5.08 | T9: =AVERAGE(E9:R9) -> 10.64785714 | U9: 6
A11: Lars Peter Damgaard - Jan Pedersen - Jørgen Pabst | E11: 12.88 | F11: 13.66 | G11: 11.58 | H11: 7.54 | I11: 9.32 | J11: 6.31 | K11: 5.78 | L11: 9.81 | M11: 10.1 | N11: 4.24 | O11: 14.83 | P11: 10.98 | Q11: 11.84 | R11: 9.27 | T11: =AVERAGE(E11:R11) -> 9.867142857 | U11: 10
A12: Niels Krøjgaard - Mads Krøjgaard | E12: 11.14 | F12: 9.02 | G12: 10.53 | H12: 5.55 | I12: 12.21 | J12: 6.24 | K12: 10.8 | L12: 16 | M12: 9.46 | N12: 14.34 | O12: 12.33 | P12: 9.18 | Q12: 10.51 | R12: 5.84 | T12: =AVERAGE(E12:R12) -> 10.225 | U12: 8
A14: Jørgen Cilleborg Hansen - Steen Schou | E14: 11.52 | F14: 7.5 | G14: 14.4 | H14: 5.68 | I14: 9.24 | J14: 4.42 | K14: 9.85 | L14: 16.16 | M14: 12.85 | N14: 11.62 | O14: 10.76 | P14: 16.29 | Q14: 9.49 | R14: 10.73 | T14: =AVERAGE(E14:R14) -> 10.75071429 | U14: 5
A15: Peter Jepsen - Søren Cilleborg Bilde | E15: 5.14 | F15: 7.27 | G15: 11.42 | H15: 6.05 | I15: 7.09 | J15: 10.59 | K15: 9.22 | L15: 10.41 | M15: 11.68 | N15: 6.42 | O15: 16.93 | P15: 12.15 | Q15: 8.16 | R15: 14.16 | T15: =AVERAGE(E15:R15) -> 9.763571429 | U15: 11
A17: Camilla Bo Krefeld - Johan Hammelev | E17: 12.56 | F17: 18.93 | G17: 5.6 | H17: 13.95 | I17: 7.79 | J17: 13.69 | K17: 6.95 | L17: 7.96 | M17: 10.98 | N17: 10.36 | O17: 19.21 | P17: 14.9 | Q17: 13.6 | R17: 14.92 | T17: =AVERAGE(E17:R17) -> 12.24285714 | U17: 2
A18: Morten Stege - Nils Mønsted | E18: 3.88 | F18: 9.6 | G18: 8.58 | H18: 14.32 | I18: 10.68 | J18: 13.76 | K18: 2.71 | L18: 15.8 | M18: 13.49 | N18: 13.68 | O18: 10.5 | P18: 13.53 | Q18: 12.01 | R18: 15.31 | T18: =AVERAGE(E18:R18) -> 11.275 | U18: 4
A20: Henrik Caspersen - Søren Caspersen | E20: 16.12 | F20: 1.07 | G20: 16.62 | H20: 15.67 | I20: 12.76 | J20: 9.45 | K20: 14.25 | L20: 10.58 | M20: 7.15 | N20: 13.58 | O20: 7.67 | P20: 9.02 | Q20: 16.11 | R20: 8.68 | T20: =AVERAGE(E20:R20) -> 11.33785714 | U20: 3
A21: Johanne Bilde Kofoed - Jens Kofoed | E21: 7.44 | F21: 10.4 | G21: 12.36 | H21: 18.13 | I21: 4.39 | J21: 13.27 | K21: 15.66 | L21: 6.48 | M21: 8.32 | N21: 8.38 | O21: 5.17 | P21: 10.82 | Q21: 6.52 | R21: 7.38 | T21: =AVERAGE(E21:R21) -> 9.622857143 | U21: 12
A23: Øjvind Hulgaard - Jesper Gad | E23: 4.74 | F23: 10.38 | G23: 3.38 | H23: 1.87 | I23: 12.91 | J23: 15.58 | K23: 9.2 | L23: 10.19 | M23: 3.75 | N23: 3.4 | O23: 9.5 | P23: 5.1 | Q23: 15.56 | R23: 8.32 | T23: =AVERAGE(E23:R23) -> 8.134285714 | U23: 14
A24: Benny Marquart - Keld Grann | E24: 4.19 | F24: 5.47 | G24: 7.64 | H24: 4.33 | I24: 10.76 | J24: 9.41 | K24: 14.22 | L24: 4 | M24: 8.06 | N24: 11.64 | O24: 0.79 | P24: 6.47 | Q24: 6.21 | R24: 10.84 | T24: =AVERAGE(E24:R24) -> 7.430714286 | U24: 15
A26: Tom Nørgaard - Trine Bilde - Peter Barsøe | E26: 14.86 | F26: 12.5 | G26: 8.42 | H26: 14.45 | I26: 16.2 | J26: 10.68 | K26: 17.29 | L26: 12.04 | M26: 11.94 | N26: 16.6 | O26: 10.73 | P26: 8.19 | Q26: 13.48 | R26: 11.32 | T26: =AVERAGE(E26:R26) -> 12.76428571 | U26: 1
A27: H K Sørensen - Niels Henriksen | E27: 8.48 | F27: 12.73 | G27: 9.47 | H27: 12.46 | I27: 7.09 | J27: 12.97 | K27: 13.05 | L27: 4.2 | M27: 16.25 | N27: 8.36 | O27: 10.69 | P27: 12.75 | Q27: 3.89 | R27: 12.62 | T27: =AVERAGE(E27:R27) -> 10.35785714 | U27: 7

Sheet Hold i alt
A1: Klub 32 - Hold 2018/2019
B5: RR1 | C5: RR2 | D5: Total | E5: Placering
A6: Nils Mønsted | B6: 85.86 | C6: 99.34 | D6: =SUM(B6:C6) -> 185.2 | E6: 1
A7: Marlene Henneberg | B7: 104.55 | C7: 77.85 | D7: 182.4 | E7: 2
A8: Niels Henriksen | B8: 61.58 | C8: 98.74 | D8: 160.32 | E8: 3
A9: Jens Kofoed | B9: 82.21 | C9: 68.68 | D9: 150.89 | E9: 4
A10: Steen Schou | B10: 71.22 | C10: 75.41 | D10: 146.63 | E10: 5
A11: Lars Peter Damgaard | B11: 74.57 | C11: 69.15 | D11: 143.72 | E11: 6
A12: Keld Grann | B12: 43.73 | C12: 37.32 | D12: 81.05 | E12: 7
A13: Jesper Bechsgaard | B13: 36.28 | C13: 33.51 | D13: 69.79 | E13: 8

Sheet Slutspil
A1: SLUTSPIL
E3: 1 | F3: 2 | G3: 3 | H3: 4 | I3: 5 | J3: 6 | K3: 7 | L3: 8 | N3: Total | O3: Placering
A5: Jesper Bechsgaard - Lars Ugilt | E5: 4.07 | F5: 3.36 | G5: 7.22 | H5: 9.46 | I5: 15.92 | J5: 7.97 | K5: 5.44 | L5: 18.49 | N5: =AVERAGE(E5:L5) -> 8.99125 | O5: 12
A6: Danny Hansen - Thomas Hahn | E6: 6.62 | F6: 2.79 | G6: 7.95 | H6: 9.78 | I6: 12.48 | J6: 11.61 | K6: 10.43 | L6: 16.53 | N6: =AVERAGE(E6:L6) -> 9.77375 | O6: 11
A8: Emil Jepsen - Morten Bilde | E8: 10.88 | F8: 7.41 | G8: 6.53 | H8: 9.32 | I8: 8.65 | J8: 14.46 | K8: 13.06 | L8: 8.32 | N8: =AVERAGE(E8:L8) -> 9.82875 | O8: 10
A9: Marlene Henneberg - J.O Henneberg | E9: 4.47 | F9: 6.06 | G9: 4.84 | H9: 6.99 | I9: 7.41 | J9: 16.32 | K9: 10.2 | L9: 11.86 | N9: =AVERAGE(E9:L9) -> 8.51875 | O9: 13
A11: Lars Peter Damgaard - Jan Pedersen - Jørgen Pabst | E11: 13.46 | F11: 10.49 | G11: 5.97 | H11: 7.26 | I11: 2.66 | J11: 13.54 | K11: 7.05 | L11: 7.7 | N11: =AVERAGE(E11:L11) -> 8.51625 | O11: 14
A12: Niels Krøjgaard - Mads Krøjgaard | E12: 10.43 | F12: 15.23 | G12: 9.5 | H12: 7.14 | I12: 9.79 | J12: 15.02 | K12: 14.61 | L12: 7.28 | N12: =AVERAGE(E12:L12) -> 11.125 | O12: 3
A14: Jørgen Cilleborg Hansen - Steen Schou | E14: 15.93 | F14: 17.21 | G14: 12.78 | H14: 10.22 | I14: 17.34 | J14: 4.98 | K14: 12.95 | L14: 12.72 | N14: =AVERAGE(E14:L14) -> 13.01625 | O14: 1
A15: Peter Jepsen - Søren Cilleborg Bilde | E15: 13.38 | F15: 16.64 | G15: 12.05 | H15: 10.54 | I15: 10.21 | J15: 6.46 | K15: 5.39 | L15: 12.3 | N15: =AVERAGE(E15:L15) -> 10.87125 | O15: 5
A17: Camilla Bo Krefeld - Johan Hammelev | E17: 12.4 | F17: 9.26 | G17: 6.7 | H17: 9.28 | I17: 6.53 | J17: 9.62 | K17: 12.92 | L17: 16.16 | N17: =AVERAGE(E17:L17) -> 10.35875 | O17: 7
A18: Morten Stege - Nils Mønsted | E18: 13.24 | F18: 14.77 | G18: 7.82 | H18: 8.14 | I18: 11.45 | J18: 12.87 | K18: 7.49 | L18: 14.16 | N18: =AVERAGE(E18:L18) -> 11.2425 | O18: 2
A20: Henrik Caspersen - Søren Caspersen | E20: 9.12 | F20: 13.94 | G20: 15.16 | H20: 11.68 | I20: 8.55 | J20: 10.38 | K20: 12.51 | L20: 3.84 | N20: =AVERAGE(E20:L20) -> 10.6475 | O20: 6
A21: Johanne Bilde Kofoed - Jens Kofoed | E21: 15.53 | F21: 12.59 | G21: 13.47 | H21: 13.01 | I21: 13.47 | J21: 7.13 | K21: 7.08 | L21: 5.84 | N21: =AVERAGE(E21:L21) -> 11.015 | O21: 4
A23: Øjvind Hulgaard - Jesper Gad | E23: 6.54 | F23: 4.77 | G23: 14.03 | H23: 12.86 | I23: 4.08 | J23: 8.39 | K23: 9.57 | L23: 1.51 | N23: =AVERAGE(E23:L23) -> 7.71875 | O23: 16
A24: Benny Marquart - Keld Grann | E24: 9.57 | F24: 9.51 | G24: 10.5 | H24: 12.74 | I24: 7.52 | J24: 12.03 | K24: 14.56 | L24: 3.47 | N24: =AVERAGE(E24:L24) -> 9.9875 | O24: 9
A26: Tom Nørgaard - Trine Bilde - Peter Barsøe | E26: 6.76 | F26: 10.74 | G26: 12.18 | H26: 10.72 | I26: 12.59 | J26: 5.54 | K26: 9.8 | L26: 11.68 | N26: =AVERAGE(E26:L26) -> 10.00125 | O26: 8
A27: H K Sørensen - Niels Henriksen | E27: 7.6 | F27: 5.23 | G27: 13.3 | H27: 11.86 | I27: 11.35 | J27: 3.68 | K27: 6.94 | L27: 8.14 | N27: =AVERAGE(E27:L27) -> 8.5125 | O27: 15

Sheet Par
A1: Par
B3: 1.aften | C3: 2.aften | D3: 3.aften | E3: 4.aften | F3: 5.aften | H3: Sum | I3: Placering
A5: Morten Stege - Nils Mønsted | B5: 62 | C5: 20 | D5: 25 | E5: -1 | F5: 20 | H5: =SUM(B5:G5) -> 126 | I5: 1
A6: Peter Jepsen - Søren Cilleborg Bilde | B6: 19 | C6: 9.6 | D6: 25 | E6: 29 | F6: 25 | H6: =SUM(B6:F6) -> 107.6 | I6: 2
A7: Marlene Henneberg - J.O Henneberg | B7: 23 | C7: 47.7 | D7: -36 | E7: 15 | F7: 30 | H7: =SUM(B7:F7) -> 79.7 | I7: 3
A8: Jørgen Cilleborg Hansen - Steen Schou | B8: 8 | C8: 30.9 | D8: -38 | E8: 24 | F8: 44 | H8: =SUM(B8:G8) -> 68.9 | I8: 4
A9: Niels Krøjgaard - Mads Krøjgaard | B9: 11 | C9: 0 | D9: 27 | E9: 35 | F9: -14 | H9: =SUM(B9:G9) -> 59 | I9: 5
A10: Henrik Caspersen - Søren Caspersen | B10: -22 | C10: 13.9 | D10: -12 | E10: 49 | F10: 1 | H10: =SUM(B10:F10) -> 29.9 | I10: 6
A11: Benny Marquart - Keld Grann | B11: 48 | C11: -1.1 | D11: 7 | E11: -26 | F11: -10 | H11: =SUM(B11:G11) -> 17.9 | I11: 7
A12: Camilla Bo Krefeld - Johan Hammelev | B12: 49 | C12: 19 | D12: -6 | E12: -41 | F12: -8 | H12: =SUM(B12:G12) -> 13 | I12: 8
A13: Jesper Bechsgaard - Lars Ugilt | B13: 5 | C13: 5.3 | D13: 0 | E13: -35 | F13: 1 | H13: =SUM(B13:F13) -> -23.7 | I13: 9
A14: Johanne Bilde Kofoed - Jens Kofoed | B14: -2 | C14: 0.4 | D14: -24 | E14: -31 | F14: 21 | H14: =SUM(B14:F14) -> -35.6 | I14: 10
A15: Tom Nørgaard - Trine Bilde - Peter Barsøe | B15: -42 | C15: -18 | D15: 3 | E15: 38 | F15: -19 | H15: =SUM(B15:G15) -> -38 | I15: 11
A16: Øjvind Hulgaard - Jesper Gad | B16: -45 | C16: 16.7 | D16: 5 | E16: -17 | F16: -1 | H16: =SUM(B16:F16) -> -41.3 | I16: 12
A17: H K Sørensen - Niels Henriksen | B17: -38 | C17: -55.4 | D17: 6 | E17: 9 | F17: -8 | H17: =SUM(B17:F17) -> -86.4 | I17: 13
A18: Emil Jepsen - Morten Bilde | B18: -54 | C18: -19.4 | D18: -6 | E18: -11 | F18: 1 | H18: =SUM(B18:G18) -> -89.4 | I18: 14
A19: Danny Hansen - Thomas Hahn | B19: -14 | C19: -20.4 | D19: 10 | E19: -7 | F19: -62 | H19: =SUM(B19:G19) -> -93.4 | I19: 15
A20: Lars Peter Damgaard - Jan Pedersen - Jørgen Pabst | B20: -8 | C20: =-49 -> -49 | D20: 14 | E20: -30 | F20: -21 | H20: =SUM(B20:F20) -> -94 | I20: 16
B21: =SUM(B5:B20) -> 0 | C21: =SUM(C5:C20) -> 0.2 | D21: =SUM(D5:D20) -> 0 | E21: =SUM(E5:E20) -> 0 | F21: =SUM(F5:F20) -> 0 | H21: =SUM(H5:H20) -> 0.2

Sheet Grand prix
A1: Grand prix klub 32 (2018-2019)
F3: Intro hold | G3: RR 1 | H3: IMP1 | I3: RR2 | J3: Slutspil | K3: Par | M3: Total | O3: Placering
A5: Morten Stege - Nils Mønsted | F5: =Intro!X15*4 -> 8 | G5: ='RR1'!U18*7 -> 35 | H5: ='Imp Par'!I10*5 -> 25 | I5: ='RR2'!U18*7 -> 28 | J5: =4*Slutspil!O18 -> 8 | K5: =Par!I5*5 -> 5 | M5: =SUM(F5:L5) -> 109 | O5: 1
A6: Henrik Caspersen - Søren Caspersen | F6: =Intro!X24*4 -> 36 | G6: ='RR1'!U20*7 -> 7 | H6: ='Imp Par'!I6*5 -> 5 | I6: ='RR2'!U20*7 -> 21 | J6: =4*Slutspil!O20 -> 24 | K6: =Par!I10*5 -> 30 | M6: 123 | O6: 2
A7: Niels Krøjgaard - Mads Krøjgaard | F7: =Intro!X21*4 -> 4 | G7: ='RR1'!U12*7 -> 28 | H7: ='Imp Par'!I9*5 -> 20 | I7: ='RR2'!U12*7 -> 56 | J7: =4*Slutspil!O12 -> 12 | K7: =Par!I9*5 -> 25 | M7: 145 | O7: 3
A8: Marlene Henneberg - J.O Henneberg | F8: =Intro!X8*4 -> 24 | G8: ='RR1'!U9*7 -> 14 | H8: ='Imp Par'!I7*5 -> 10 | I8: ='RR2'!U9*7 -> 42 | J8: =4*Slutspil!O9 -> 52 | K8: =Par!I7*5 -> 15 | M8: 157 | O8: 4
A9: Jørgen Cilleborg Hansen - Steen Schou | F9: =Intro!X11*4 -> 48 | G9: ='RR1'!U14*7 -> 49 | H9: ='Imp Par'!I11*5 -> 30 | I9: ='RR2'!U14*7 -> 35 | J9: =4*Slutspil!O14 -> 4 | K9: =Par!I8*5 -> 20 | M9: 186 | O9: 5
A10: Camilla Bo Krefeld - Johan Hammelev | F10: =Intro!X26*4 -> 28 | G10: ='RR1'!U17*7 -> 42 | H10: ='Imp Par'!I12*5 -> 35 | I10: ='RR2'!U17*7 -> 14 | J10: =4*Slutspil!O17 -> 28 | K10: =Par!I12*5 -> 40 | M10: 187 | O10: 6
A11: Emil Jepsen - Morten Bilde | F11: =Intro!X14*4 -> 12 | G11: ='RR1'!U8*7 -> 21 | H11: ='Imp Par'!I8*5 -> 15 | I11: ='RR2'!U8*7 -> 63 | J11: =4*Slutspil!O8 -> 40 | K11: =Par!I18*5 -> 70 | M11: 221 | O11: 7
A12: Tom Nørgaard - Trine Bilde - Peter Barsøe | F12: =Intro!X17*4 -> 40 | G12: ='RR1'!U26*7 -> 63 | H12: ='Imp Par'!I13*5 -> 40 | I12: ='RR2'!U26*7 -> 7 | J12: =4*Slutspil!O26 -> 32 | K12: =Par!I15*5 -> 55 | M12: 237 | O12: 8
A13: Peter Jepsen - Søren Cilleborg Bilde | F13: =Intro!X12*4 -> 52 | G13: ='RR1'!U15*7 -> 91 | H13: ='Imp Par'!I16*5 -> 55 | I13: ='RR2'!U15*7 -> 77 | J13: =4*Slutspil!O15 -> 20 | K13: =Par!I6*5 -> 10 | M13: 305 | O13: 9
A14: H K Sørensen - Niels Henriksen | F14: =Intro!X9*4 -> 32 | G14: ='RR1'!U27*7 -> 56 | H14: ='Imp Par'!I18*5 -> 65 | I14: ='RR2'!U27*7 -> 49 | J14: =4*Slutspil!O27 -> 60 | K14: =Par!I17*5 -> 65 | M14: 327 | O14: 10
A15: Lars Peter Damgaard - Jan Pedersen - Jørgen Pabst | F15: =Intro!X5*4 -> 20 | G15: ='RR1'!U11*7 -> 77 | H15: ='Imp Par'!I14*5 -> 45 | I15: ='RR2'!U11*7 -> 70 | J15: =4*Slutspil!O11 -> 56 | K15: =Par!I20*5 -> 80 | M15: 348 | O15: 11
A16: Benny Marquart - Keld Grann | F16: =Intro!X6*4 -> 44 | G16: ='RR1'!U24*7 -> 70 | H16: ='Imp Par'!I17*5 -> 60 | I16: ='RR2'!U24*7 -> 105 | J16: =4*Slutspil!O24 -> 36 | K16: =Par!I11*5 -> 35 | M16: 350 | O16: 12
A17: Johanne Bilde Kofoed - Jens Kofoed | F17: =Intro!X23*4 -> 56 | G17: ='RR1'!U21*7 -> 98 | H17: ='Imp Par'!I19*5 -> 70 | I17: ='RR2'!U21*7 -> 84 | J17: =4*Slutspil!O21 -> 16 | K17: =Par!I14*5 -> 50 | M17: 374 | O17: 13
A18: Øjvind Hulgaard - Jesper Gad | F18: =Intro!X20*4 -> 16 | G18: ='RR1'!U23*7 -> 105 | H18: ='Imp Par'!I15*5 -> 50 | I18: ='RR2'!U23*7 -> 98 | J18: =4*Slutspil!O23 -> 64 | K18: =Par!I16*5 -> 60 | M18: 393 | O18: 14
A19: Jesper Bechsgaard - Lars Ugilt | F19: =Intro!X27*4 -> 64 | G19: ='RR1'!U5*7 -> 84 | H19: ='Imp Par'!I21*5 -> 80 | I19: ='RR2'!U5*7 -> 91 | J19: =4*Slutspil!O5 -> 48 | K19: =Par!I13*5 -> 45 | M19: 412 | O19: 15
A20: Danny Hansen - Thomas Hahn | F20: =Intro!X18*4 -> 60 | G20: ='RR1'!U6*7 -> 112 | H20: ='Imp Par'!I20*5 -> 75 | I20: ='RR2'!U6*7 -> 112 | J20: =4*Slutspil!O6 -> 44 | K20: =Par!I19*5 -> 75 | M20: 478 | O20: 16

Sheet Fremmøde
A1: Fremmøde som samlet par
B3: Introhold | C3: RR1 | D3: Imp | E3: RR2 | F3: Slut | G3: par | I3: Fremmøde% | K3: Fremmøde/antal
A4: Aftener: | B4: 4 | C4: 7 | D4: 5 | E4: 7 | F4: 4 | G4: 5 | K4: =SUM(B4:J4) -> 32
B5: Fremmøde
A6: Lars Peter Damgaard - Jan Pedersen - Jørgen Pabst | B6: 4 | C6: 7 | D6: 5 | E6: 7 | F6: 4 | G6: 5 | I6: =SUM(B6:G6)/$K$4% -> 100 | K6: =SUM(B6:G6) -> 32
A7: Camilla Bo Krefeld - Johan Hammelev | B7: 4 | C7: 7 | D7: 5 | E7: 7 | F7: 2 | G7: 5 | I7: =SUM(B7:G7)/$K$4% -> 93.75 | K7: =SUM(B7:G7) -> 30
A8: Jesper Bechsgaard - Lars Ugilt | B8: 4 | C8: 6 | D8: 5 | E8: 6 | F8: 3 | G8: 5 | I8: =SUM(B8:G8)/$K$4% -> 90.625 | K8: =SUM(B8:G8) -> 29
A9: Tom Nørgaard - Trine Bilde - Peter Barsøe | B9: 3 | C9: 7 | D9: 4 | E9: 6 | F9: 4 | G9: 5 | I9: =SUM(B9:G9)/$K$4% -> 90.625 | K9: =SUM(B9:G9) -> 29
A10: Niels Krøjgaard - Mads Krøjgaard | B10: 3 | C10: 6 | D10: 5 | E10: 6 | F10: 4 | G10: 4 | I10: =SUM(B10:G10)/$K$4% -> 87.5 | K10: =SUM(B10:G10) -> 28
A11: Morten Stege - Nils Mønsted | B11: 4 | C11: 7 | D11: 3 | E11: 6 | F11: 3 | G11: 5 | I11: =SUM(B11:G11)/$K$4% -> 87.5 | K11: =SUM(B11:G11) -> 28
A12: Marlene Henneberg - J.O Henneberg | B12: 3 | C12: 7 | D12: 5 | E12: 6 | F12: 2 | G12: 5 | I12: =SUM(B12:G12)/$K$4% -> 87.5 | K12: =SUM(B12:G12) -> 28
A13: Benny Marquart - Keld Grann | B13: 4 | C13: 5 | D13: 4 | E13: 5 | F13: 4 | G13: 5 | I13: =SUM(B13:G13)/$K$4% -> 84.375 | K13: =SUM(B13:G13) -> 27
A14: Jørgen Cilleborg Hansen - Steen Schou | B14: 3 | C14: 6 | D14: 4 | E14: 5 | F14: 4 | G14: 4 | I14: =SUM(B14:G14)/$K$4% -> 81.25 | K14: =SUM(B14:G14) -> 26
A15: Johanne Bilde Kofoed - Jens Kofoed | B15: 4 | C15: 4 | D15: 5 | E15: 4 | F15: 2 | G15: 5 | I15: =SUM(B15:G15)/$K$4% -> 75 | K15: =SUM(B15:G15) -> 24
A16: Øjvind Hulgaard - Jesper Gad | B16: 4 | C16: 6 | D16: 3 | E16: 3 | F16: 3 | G16: 5 | I16: =SUM(B16:G16)/$K$4% -> 75 | K16: =SUM(B16:G16) -> 24
A17: Danny Hansen - Thomas Hahn | B17: 3 | C17: 5 | D17: 4 | E17: 2 | F17: 4 | G17: 5 | I17: =SUM(B17:G17)/$K$4% -> 71.875 | K17: =SUM(B17:G17) -> 23
A18: H K Sørensen - Niels Henriksen | B18: 1 | C18: 6 | D18: 3 | E18: 4 | F18: 3 | G18: 4 | I18: =SUM(B18:G18)/$K$4% -> 65.625 | K18: =SUM(B18:G18) -> 21
A19: Peter Jepsen - Søren Cilleborg Bilde | B19: 4 | C19: 7 | D19: 4 | E19: 2 | F19: 0 | G19: 3 | I19: =SUM(B19:G19)/$K$4% -> 62.5 | K19: =SUM(B19:G19) -> 20
A20: Emil Jepsen - Morten Bilde | B20: 2 | C20: 5 | D20: 3 | E20: 2 | F20: 3 | G20: 3 | I20: =SUM(B20:G20)/$K$4% -> 56.25 | K20: =SUM(B20:G20) -> 18
A21: Henrik Caspersen - Søren Caspersen | B21: 0 | C21: 4 | D21: 4 | E21: 4 | F21: 3 | G21: 2 | I21: =SUM(B21:G21)/$K$4% -> 53.125 | K21: =SUM(B21:G21) -> 17
